bitfinex-derivatives/quotes_BTCF0:USTF0_20241015
["timestamp","ask_amount","ask_price","bid_price","bid_amount"]
[1729024505506,0.07503,66643.0,66639.0,0.17]
[1729024506013,0.3608,66644.0,66639.0,0.17]
[1729024506619,0.001,66642.0,66639.0,0.17]
[1729024506812,0.171,66642.0,66634.0,0.015251]
[1729024507016,0.075037,66637.0,66634.0,0.015251]
[1729024507205,0.075038,66636.0,66634.0,0.005251]
[1729024507514,0.17,66640.0,66634.0,0.005251]
[1729024507719,0.075039,66635.0,66634.0,0.002251]
[1729024507906,0.075039,66635.0,66634.0,0.012251]
[1729024509613,0.075039,66635.0,66634.0,0.015251]
[1729024510015,0.075039,66635.0,66634.0,0.005251]
[1729024510215,0.075039,66635.0,66634.0,0.015251]
[1729024510216,0.076039,66635.0,66634.0,0.015251]
[1729024510919,0.076039,66635.0,66633.0,0.30039]
[1729024510920,0.07504,66634.0,66633.0,0.30039]
[1729024511110,0.69528,66634.0,66633.0,0.10662225]
[1729024511317,0.075056,66620.0,66616.0,0.00225163]
[1729024511512,0.075056,66620.0,66619.0,0.65424999]
[1729024511721,0.075056,66620.0,66619.0,0.30045]
[1729024513520,0.077056,66620.0,66619.0,0.30045]
[1729024514028,0.002,66620.0,66619.0,0.30045]
[1729024514323,0.003,66620.0,66619.0,0.47045]
[1729024515025,0.003,66620.0,66619.0,0.30045]
[1729024515424,0.007,66620.0,66619.0,0.30045]
[1729024516526,0.082056,66620.0,66619.0,0.30045]
[1729024517724,0.007,66620.0,66619.0,0.30045]
[1729024518632,0.3608,66637.0,66627.0,0.075048]
[1729024518813,0.3608,66637.0,66619.0,1.595827]
[1729024518814,0.3608,66637.0,66635.0,0.17]
[1729024519016,0.3608,66637.0,66633.0,0.075041]
[1729024519424,0.3608,66637.0,66634.0,0.07504]
[1729024519728,0.5318,66637.0,66632.0,0.30045]
[1729024520323,0.5328,66637.0,66632.0,0.30045]
[1729024520523,0.5358,66637.0,66632.0,0.30045]
[1729024520913,0.5348,66637.0,66632.0,0.30045]
[1729024521118,0.5348,66637.0,66632.0,0.30345]
[1729024521524,0.5348,66637.0,66632.0,0.30045]
[1729024522524,0.075038,66636.0,66632.0,0.30045]
[1729024522723,0.075041,66633.0,66632.0,0.30045]
[1729024523126,0.11180328,66633.0,66632.0,0.30045]
[1729024523426,0.075041,66633.0,66632.0,0.30145]
[1729024523821,0.075041,66633.0,66632.0,0.30445]
[1729024524324,0.086041,66633.0,66632.0,0.30145]
[1729024524925,0.089041,66633.0,66632.0,0.30145]
[1729024525331,0.450441,66633.0,66632.0,0.30145]
[1729024525526,0.444441,66633.0,66632.0,0.30145]
[1729024525726,0.452441,66633.0,66632.0,0.30145]
[1729024525928,0.456441,66633.0,66632.0,0.30145]
[1729024526122,0.456441,66633.0,66632.0,0.26129531]
[1729024526328,0.075049,66627.0,66612.0,0.00326]
[1729024526528,0.245064,66613.0,66612.0,0.00326]
[1729024527537,0.075065,66612.0,66611.0,0.30049]
[1729024527929,0.335065,66612.0,66611.0,0.30049]
[1729024528632,0.075062,66615.0,66611.0,0.30049]
[1729024528833,0.001,66612.0,66611.0,0.30349]
[1729024529225,0.001,66612.0,66611.0,0.30549]
[1729024531139,0.076065,66612.0,66611.0,0.30549]
[1729024531933,0.436865,66612.0,66611.0,0.30549]
[1729024532335,0.559565,66612.0,66611.0,0.30549]
[1729024534747,0.436865,66612.0,66611.0,0.30549]
[1729024535040,0.001,66612.0,66611.0,0.30549]
[1729024536042,0.076065,66612.0,66611.0,0.30549]
[1729024537153,0.436865,66612.0,66611.0,0.30549]
[1729024540247,0.076065,66612.0,66611.0,0.30549]
[1729024541840,0.076065,66612.0,66611.0,0.30349]
[1729024542146,0.076065,66612.0,66611.0,0.30549]
[1729024543451,0.075065,66612.0,66611.0,0.30449]
[1729024543951,0.075065,66612.0,66611.0,0.30249]
[1729024544251,0.077065,66612.0,66611.0,0.30049]
[1729024544546,0.081065,66612.0,66611.0,0.30049]
[1729024544759,0.084065,66612.0,66611.0,0.30049]
[1729024545250,0.087065,66612.0,66611.0,0.30049]
[1729024550356,0.447865,66612.0,66611.0,0.30049]
[1729024553657,0.48463746,66612.0,66611.0,0.30049]
[1729024554758,1.53499746,66612.0,66611.0,0.10524038]
[1729024554947,1.53499746,66612.0,66591.0,0.36168]
[1729024554948,0.075073,66598.0,66591.0,0.6038]
[1729024555154,0.07508,66592.0,66591.0,0.6038]
[1729024555353,0.17,66595.0,66593.0,0.20079]
[1729024555550,0.11185762,66594.0,66593.0,0.20079]
[1729024556253,0.075078,66594.0,66593.0,0.20079]
[1729024556654,0.076074,66598.0,66593.0,0.20079]
[1729024556855,0.076074,66598.0,66597.0,0.5308]
[1729024557061,0.11285024,66598.0,66597.0,0.5308]
[1729024557265,0.076074,66598.0,66597.0,0.5308]
[1729024557558,0.075074,66598.0,66597.0,0.5308]
[1729024557765,0.09733953,66598.0,66597.0,0.5308]
[1729024557951,0.09733953,66598.0,66597.0,0.3608]
[1729024558252,0.09733953,66598.0,66593.0,0.37579]
[1729024558253,0.075078,66594.0,66593.0,0.20979]
[1729024558458,0.11185544,66594.0,66593.0,0.20479]
[1729024559762,0.11185544,66594.0,66593.0,0.20079]
[1729024560563,0.076078,66594.0,66593.0,0.41968012]
[1729024560865,0.077078,66594.0,66593.0,0.37979]
[1729024561165,0.247078,66594.0,66593.0,0.20979]
[1729024561573,0.077078,66594.0,66593.0,0.20979]
[1729024562794,0.247078,66594.0,66593.0,0.20979]
[1729024563387,0.607878,66594.0,66593.0,0.20680084]
[1729024563577,0.607878,66594.0,66579.0,0.00326]
[1729024563578,0.075085,66588.0,66581.0,0.04496987]
[1729024563879,0.17,66579.0,66561.0,0.42061834]
[1729024564073,0.245114,66562.0,66561.0,0.3608]
[1729024564274,0.17,66566.0,66565.0,0.225586]
[1729024564473,0.245109,66566.0,66565.0,0.14288086]
[1729024564675,0.245109,66566.0,66565.0,0.11088085]
[1729024564877,0.27539355,66566.0,66565.0,0.08908068]
[1729024565389,1.07937716,66566.0,66565.0,0.06108068]
[1729024565679,1.07937716,66566.0,66565.0,0.05408068]
[1729024565680,0.62869716,66566.0,66565.0,0.05408068]
[1729024566083,0.63626257,66566.0,66565.0,0.05408068]
[1729024566386,0.075139,66540.0,66539.0,0.0001]
[1729024566679,0.17,66540.0,66527.0,0.3608]
[1729024566880,0.075144,66535.0,66527.0,0.3608]
[1729024567190,0.3608,66542.0,66534.0,0.3608]
[1729024567191,0.075144,66536.0,66534.0,0.3608]
[1729024567374,0.075144,66535.0,66534.0,0.3608]
[1729024567881,0.076139,66540.0,66534.0,0.3608]
[1729024568086,0.075135,66544.0,66541.0,0.29981]
[1729024568385,0.42088,66547.0,66543.0,0.3608]
[1729024568386,0.496772,66547.0,66543.0,0.3608]
[1729024568581,0.496012,66547.0,66544.0,0.1221]
[1729024568885,0.3608,66562.0,66545.0,0.26]
[1729024569078,0.075122,66555.0,66553.0,0.26]
[1729024569278,0.26,66562.0,66549.0,0.3608]
[1729024569478,0.075127,66550.0,66549.0,0.3608]
[1729024569676,0.3608,66581.0,66549.0,1.67156]
[1729024569985,0.075086,66587.0,66574.0,0.26]
[1729024569986,0.075099,66575.0,66574.0,0.26]
[1729024570186,0.07735204,66576.0,66574.0,0.26]
[1729024570387,0.075084,66589.0,66581.0,0.29981]
[1729024570586,0.42096,66596.0,66584.0,0.26]
[1729024570587,0.3608,66591.0,66584.0,0.26]
[1729024570888,0.075086,66587.0,66584.0,0.26]
[1729024571078,0.6208,66591.0,66581.0,0.29981]
[1729024571279,0.075091,66582.0,66581.0,0.29981]
[1729024571477,0.695891,66582.0,66581.0,0.29981]
[1729024571677,0.001,66589.0,66581.0,1.37117]
[1729024571883,0.001,66589.0,66588.0,0.6208]
[1729024572182,0.075069,66602.0,66588.0,0.6208]
[1729024572382,0.075078,66594.0,66593.0,0.26]
[1729024573784,0.083078,66594.0,66593.0,0.26]
[1729024573989,0.008,66594.0,66593.0,0.26]
[1729024574785,0.008,66594.0,66593.0,0.335079]
[1729024574994,0.01,66594.0,66593.0,0.335079]
[1729024575598,0.01,66594.0,66593.0,0.26]
[1729024576087,0.01,66594.0,66593.0,0.335079]
[1729024576486,0.00225315,66605.0,66602.0,0.075067]
[1729024576691,0.02282396,66612.0,66604.0,0.3608]
[1729024576899,0.075053,66616.0,66615.0,0.26]
[1729024577091,0.02279223,66622.0,66615.0,0.26]
[1729024577285,0.075051,66618.0,66617.0,0.3608]
[1729024577895,0.42096,66623.0,66617.0,0.3608]
[1729024578095,0.42096,66623.0,66621.0,0.26]
[1729024578306,0.001,66622.0,66621.0,0.26]
[1729024579692,0.002,66622.0,66621.0,0.269]
[1729024579894,0.001,66622.0,66621.0,0.269]
[1729024580201,0.436846,66622.0,66621.0,0.009]
[1729024580706,0.437846,66622.0,66621.0,0.013]
[1729024580894,0.697846,66622.0,66621.0,0.013]
[1729024581702,0.437846,66622.0,66621.0,0.013]
[1729024582293,0.697846,66622.0,66621.0,0.013]
[1729024582496,1.67312,66622.0,66604.0,0.3608]
[1729024582701,1.67312,66622.0,66593.0,0.01504]
[1729024582702,0.150114,66613.0,66599.0,0.28954]
[1729024583001,0.075071,66600.0,66599.0,0.28954]
[1729024583605,0.525511,66600.0,66599.0,0.28954]
[1729024583801,0.075071,66600.0,66599.0,0.28954]
[1729024584299,0.076071,66600.0,66599.0,0.29154]
[1729024584895,0.077071,66600.0,66599.0,0.28954]
[1729024585302,0.077071,66600.0,66599.0,0.54954]
[1729024586002,0.002,66600.0,66599.0,0.54954]
[1729024586211,0.016,66600.0,66599.0,0.54954]
[1729024586797,0.002,66600.0,66599.0,0.54954]
[1729024587096,0.013,66600.0,66599.0,0.54954]
[1729024587495,0.005,66600.0,66599.0,0.54954]
[1729024588506,0.001,66600.0,66599.0,0.54954]
[1729024588700,0.001,66600.0,66599.0,0.624612]
[1729024588900,0.4208,66615.0,66599.0,1.59998]
[1729024589104,0.4208,66615.0,66614.0,0.26]
[1729024590403,0.26,66630.0,66614.0,0.26]
[1729024590404,0.0008,66636.0,66614.0,1.645415]
[1729024590605,0.3608,66644.0,66614.0,1.645415]
[1729024590606,0.3608,66644.0,66635.0,0.26]
[1729024590803,0.3608,66644.0,66640.0,0.26]
[1729024591098,0.07727682,66641.0,66640.0,0.26]
[1729024591300,0.075027,66640.0,66636.0,0.3608]
[1729024591504,0.00225182,66641.0,66636.0,0.3608]
[1729024591915,0.075028,66639.0,66636.0,0.3608]
[1729024592707,0.00525182,66641.0,66636.0,0.3608]
[1729024592708,0.26525182,66641.0,66636.0,0.3608]
[1729024592906,0.335029,66637.0,66636.0,0.3608]
[1729024593306,0.335029,66637.0,66627.0,0.28954]
[1729024593307,0.075039,66628.0,66627.0,0.28954]
[1729024593808,0.003,66639.0,66627.0,0.28954]
[1729024594013,0.003,66639.0,66638.0,0.3608]
[1729024595201,0.076027,66639.0,66638.0,0.3608]
[1729024595708,0.001,66639.0,66638.0,0.3608]
[1729024595913,0.075022,66644.0,66641.0,0.28628818]
[1729024596097,0.075017,66648.0,66643.0,0.26]
[1729024596303,0.00225119,66659.0,66646.0,0.3608]
[1729024596504,0.075005,66658.0,66657.0,0.26]
[1729024597199,0.00225119,66659.0,66657.0,0.26]
[1729024597511,0.00225119,66659.0,66657.0,0.54628]
[1729024597709,0.6208,66682.0,66657.0,0.54628]
[1729024597910,0.074993,66669.0,66668.0,0.26]
[1729024598703,0.38371242,66682.0,66668.0,0.26]
[1729024599010,0.074984,66678.0,66677.0,0.3608]
[1729024599216,0.074984,66678.0,66677.0,0.7216]
[1729024599514,0.074979,66682.0,66677.0,0.7216]
[1729024599721,0.3608,66696.0,66678.0,0.074983]
[1729024599905,0.3608,66696.0,66687.0,0.3608]
[1729024600101,0.074972,66688.0,66687.0,0.3608]
[1729024600804,0.474972,66688.0,66677.0,0.3608]
[1729024601013,0.074986,66675.0,66674.0,0.28628]
[1729024601213,0.474986,66675.0,66674.0,0.28628]
[1729024601408,0.474986,66675.0,66668.0,0.013]
[1729024601409,0.074993,66669.0,66668.0,0.013]
[1729024601602,0.474993,66669.0,66668.0,0.013]
[1729024602016,0.074999,66664.0,66655.0,0.3608]
[1729024604606,0.076999,66664.0,66663.0,0.00325]
[1729024605013,0.079999,66664.0,66663.0,0.00325]
[1729024605808,0.075008,66657.0,66655.0,0.28357381]
[1729024606012,0.06572207,66656.0,66655.0,0.28357381]
[1729024606318,0.14073007,66656.0,66655.0,0.28357381]
[1729024606812,0.03673937,66656.0,66655.0,0.28357381]
[1729024607014,0.075,66663.0,66660.0,0.30027]
[1729024607319,0.075,66663.0,66662.0,0.3608]
[1729024607807,0.12105078,66663.0,66662.0,0.3608]
[1729024608110,0.13216188,66665.0,66660.0,0.30027]
[1729024608310,0.075002,66661.0,66660.0,0.30027]
[1729024608510,0.20716388,66661.0,66660.0,0.30027]
[1729024608716,0.25321465,66661.0,66660.0,0.30027]
[1729024608908,0.12105277,66661.0,66660.0,0.30027]
[1729024609103,0.25321465,66661.0,66660.0,0.30027]
[1729024609321,0.075002,66661.0,66660.0,0.30027]
[1729024609615,0.12105387,66661.0,66660.0,0.30027]
[1729024610117,0.075002,66661.0,66660.0,0.30027]
[1729024611419,0.675002,66661.0,66660.0,0.30027]
[1729024612113,0.075002,66661.0,66660.0,0.30027]
[1729024612416,0.04805377,66661.0,66660.0,0.30027]
[1729024612608,0.002,66661.0,66660.0,0.23868932]
[1729024613512,0.077002,66661.0,66660.0,0.23868932]
[1729024613716,0.078002,66661.0,66660.0,0.23868932]
[1729024614315,0.077002,66661.0,66660.0,0.23968932]
[1729024615123,0.077002,66661.0,66660.0,0.23868932]
[1729024616922,0.078002,66661.0,66660.0,0.23868932]
[1729024617421,0.078002,66661.0,66660.0,0.23968932]
[1729024618806,0.07723985,66673.0,66660.0,2.05052932]
[1729024618807,0.00225085,66673.0,66660.0,2.05052932]
[1729024619006,0.074969,66691.0,66681.0,0.074979]
[1729024619211,0.074977,66683.0,66682.0,0.3608]
[1729024619410,0.3608,66692.0,66682.0,0.3608]
[1729024619623,0.3608,66692.0,66682.0,0.435778]
[1729024619927,0.3608,66692.0,66682.0,0.695778]
[1729024620126,0.3608,66692.0,66682.0,0.6208]
[1729024620315,0.074977,66683.0,66682.0,0.6208]
[1729024620627,0.38318705,66692.0,66682.0,0.6208]
[1729024620813,0.074972,66689.0,66688.0,0.3608]
[1729024621012,0.074972,66689.0,66688.0,0.6208]
[1729024621013,0.02896819,66689.0,66688.0,0.6208]
[1729024621211,0.001,66692.0,66691.0,0.074968]
[1729024621414,0.07495,66708.0,66695.0,0.074964]
[1729024621721,0.334949,66708.0,66706.0,0.3608]
[1729024622026,0.074967,66692.0,66691.0,0.00112]
[1729024622318,0.26,66702.0,66690.0,0.3608]
[1729024622527,0.03672356,66701.0,66690.0,0.3608]
[1729024622715,0.09715972,66703.0,66690.0,0.3608]
[1729024622716,0.074968,66691.0,66690.0,0.3608]
[1729024622911,0.28220472,66703.0,66690.0,0.3608]
[1729024622912,0.074967,66692.0,66690.0,0.3608]
[1729024623115,0.075967,66692.0,66691.0,0.014]
[1729024623419,0.001,66692.0,66691.0,0.014]
[1729024623624,0.001,66701.0,66691.0,1.04984]
[1729024623920,0.001,66701.0,66700.0,0.695758]
[1729024624118,0.02257816,66716.0,66703.0,0.23543]
[1729024624313,0.07719451,66712.0,66711.0,0.3608]
[1729024624514,0.07719451,66712.0,66703.0,0.23543]
[1729024624515,0.074954,66704.0,66703.0,0.23543]
[1729024626119,0.074954,66704.0,66703.0,0.24943]
[1729024626526,0.074954,66704.0,66703.0,0.26343]
[1729024628727,0.074953,66706.0,66703.0,0.26343]
[1729024629724,0.02302066,66710.0,66703.0,0.26343]
[1729024629924,0.36304951,66712.0,66703.0,0.26343]
[1729024630521,0.001,66706.0,66703.0,0.26343]
[1729024631714,0.001,66706.0,66705.0,0.074953]
[1729024632318,0.001,66706.0,66703.0,0.62531]
[1729024632623,0.074953,66705.0,66703.0,0.62423]
[1729024632829,0.074954,66704.0,66703.0,0.62423]
[1729024633031,0.074954,66704.0,66703.0,0.61623]
[1729024634026,0.074954,66704.0,66703.0,0.60223]
[1729024634330,0.435754,66704.0,66703.0,0.23643]
[1729024634923,0.074954,66704.0,66703.0,0.23643]
[1729024635622,0.074954,66704.0,66703.0,0.23743]
[1729024636724,0.1051885,66704.0,66703.0,0.23743]
[1729024639631,0.008,66704.0,66703.0,0.59823]
[1729024640726,0.008,66704.0,66703.0,0.672185]
[1729024640926,0.00224951,66712.0,66703.0,0.59723]
[1729024641426,0.074954,66704.0,66703.0,0.59723]
[1729024641835,0.074954,66704.0,66703.0,0.23643]
[1729024643134,0.22193463,66704.0,66703.0,0.18064567]
[1729024643435,0.19366042,66704.0,66703.0,0.18064567]
[1729024643825,0.32664961,66704.0,66703.0,0.18064567]
[1729024644032,0.32664961,66704.0,66703.0,0.18164567]
[1729024644336,1.15446067,66704.0,66703.0,0.18080567]
[1729024644634,0.07497,66690.0,66689.0,0.16516]
[1729024644830,0.59497,66690.0,66689.0,0.16516]
[1729024645038,0.56556098,66690.0,66689.0,0.16516]
[1729024645238,0.47151763,66690.0,66689.0,0.16516]
[1729024645421,1.68303632,66690.0,66689.0,0.16516]
[1729024646231,1.68303632,66690.0,66669.0,0.4845]
[1729024646232,0.074992,66670.0,66669.0,0.4845]
[1729024646432,0.26,66667.0,66663.0,0.37108994]
[1729024646639,0.03671849,66666.0,66665.0,0.074998]
[1729024646937,0.074993,66669.0,66668.0,0.26351151]
[1729024647129,0.12103685,66669.0,66668.0,0.26351151]
[1729024647324,0.074993,66669.0,66668.0,0.26351151]
[1729024647523,0.12103685,66669.0,66668.0,0.26351151]
[1729024647730,0.22300019,66669.0,66668.0,0.26351151]
[1729024647930,0.26904404,66669.0,66668.0,0.26351151]
[1729024648130,0.26904404,66669.0,66668.0,0.26751151]
[1729024648327,0.14335635,66669.0,66668.0,0.26751151]
[1729024649437,0.14335635,66669.0,66668.0,0.26351151]
[1729024649629,0.14335635,66669.0,66668.0,0.26851151]
[1729024651034,0.0973125,66669.0,66668.0,0.26851151]
[1729024651440,0.3608,66676.0,66668.0,0.26851151]
[1729024651740,0.074992,66670.0,66668.0,0.26851151]
[1729024652036,0.074989,66673.0,66669.0,0.3608]
[1729024652943,0.435792,66670.0,66668.0,0.26851151]
[1729024653239,0.075014,66650.0,66649.0,0.01254016]
[1729024653445,0.335014,66650.0,66649.0,0.01254016]
[1729024655736,0.336014,66650.0,66649.0,0.02154016]
[1729024655929,0.336014,66650.0,66649.0,0.02525016]
[1729024656133,0.696814,66650.0,66649.0,0.02525016]
[1729024656532,1.746934,66650.0,66649.0,0.02525016]
[1729024656930,1.746934,66650.0,66649.0,0.01625016]
[1729024657132,1.745934,66650.0,66649.0,0.00725016]
[1729024657436,1.746934,66650.0,66649.0,0.01125016]
[1729024657750,1.746934,66650.0,66649.0,0.00925016]
[1729024658641,1.745934,66650.0,66649.0,0.00525016]
[1729024658834,1.746934,66650.0,66649.0,0.01325016]
[1729024659041,0.336014,66650.0,66649.0,0.011]
[1729024659744,0.001,66650.0,66649.0,0.011]
[1729024660836,0.075013,66652.0,66649.0,0.011]
[1729024660837,0.03847363,66652.0,66649.0,0.00777053]
[1729024661047,0.03847363,66652.0,66651.0,0.3608]
[1729024661448,0.28208479,66655.0,66651.0,0.3608]
[1729024661449,0.02208479,66655.0,66651.0,0.3608]
[1729024661648,0.075009,66656.0,66651.0,0.3608]
[1729024661844,0.075007,66657.0,66651.0,0.435813]
[1729024662040,0.26,66660.0,66651.0,0.3608]
[1729024662248,0.075008,66656.0,66651.0,0.3608]
[1729024662440,0.001,66652.0,66651.0,0.3668]
[1729024662951,0.075008,66656.0,66651.0,0.3668]
[1729024663142,0.075008,66656.0,66651.0,0.3678]
[1729024663454,0.28309556,66660.0,66651.0,0.3618]
[1729024663455,0.075009,66655.0,66651.0,0.3618]
[1729024663647,0.001,66652.0,66651.0,0.3678]
[1729024664744,0.001,66652.0,66651.0,0.442813]
[1729024664950,0.00225112,66664.0,66651.0,1.79432]
[1729024665137,0.00225112,66664.0,66663.0,0.3608]
[1729024665543,0.00225112,66664.0,66663.0,0.4777]
[1729024665750,0.00225112,66664.0,66663.0,0.5527]
[1729024665952,0.00225112,66664.0,66663.0,1.1527]
[1729024666545,0.00425112,66664.0,66663.0,1.1537]
[1729024666746,0.42044,66673.0,66663.0,1.1537]
[1729024667039,0.36305017,66687.0,66663.0,1.1537]
[1729024667040,0.02260194,66678.0,66672.0,0.3608]
[1729024667239,0.02260194,66678.0,66664.0,0.074998]
[1729024667240,0.074992,66671.0,66664.0,0.074998]
[1729024667445,0.074992,66671.0,66665.0,0.074997]
[1729024667648,0.074992,66671.0,66663.0,0.4777]
[1729024667864,0.26,66676.0,66663.0,0.4777]
[1729024668147,0.074992,66671.0,66666.0,0.26]
[1729024668539,0.074992,66671.0,66666.0,0.334996]
[1729024668746,0.074992,66670.0,66669.0,0.3608]
[1729024670958,0.074992,66670.0,66669.0,0.435793]
[1729024672151,0.02294611,66681.0,66669.0,0.3608]
[1729024672347,0.074983,66678.0,66677.0,0.3608]
[1729024672551,0.074983,66678.0,66677.0,0.695784]
[1729024672749,0.00740112,66686.0,66677.0,0.6208]
[1729024673061,0.00740112,66686.0,66682.0,0.26]
[1729024673355,0.02432296,66687.0,66682.0,0.26]
[1729024673745,0.074977,66683.0,66682.0,0.26]
[1729024673955,0.1577377,66683.0,66682.0,0.26]
[1729024674348,0.30494822,66683.0,66682.0,0.26]
[1729024674744,0.1577377,66683.0,66682.0,0.26]
[1729024675153,0.1577377,66683.0,66682.0,0.001]
[1729024675657,0.1677377,66683.0,66682.0,0.002]
[1729024677754,0.1677377,66683.0,66682.0,0.001]
[1729024677955,0.1687377,66683.0,66682.0,0.002]
[1729024678155,0.1587377,66683.0,66682.0,0.001]
[1729024678466,0.1697377,66683.0,66682.0,0.002]
[1729024679357,0.30288897,66683.0,66682.0,0.002]
[1729024679660,0.30288897,66683.0,66682.0,0.001]
[1729024679661,0.30188897,66683.0,66682.0,0.001]
[1729024679853,1.4796177,66683.0,66674.0,0.30033]
[1729024680049,0.695786,66675.0,66674.0,0.30033]
[1729024680249,0.70357291,66675.0,66661.0,0.01029]
[1729024680449,0.075004,66659.0,66654.0,0.3608]
[1729024680649,0.1210556,66659.0,66654.0,0.3608]
[1729024680853,0.1210556,66659.0,66657.0,0.30028]
[1729024680854,0.075004,66659.0,66657.0,0.30028]
[1729024682052,0.076004,66659.0,66657.0,0.30028]
[1729024682446,0.001,66659.0,66658.0,0.01025026]
[1729024682647,0.001,66659.0,66658.0,0.70605526]
[1729024683159,0.001,66659.0,66658.0,0.69805526]
[1729024683355,0.004,66659.0,66658.0,0.69805526]
[1729024684058,0.003,66659.0,66658.0,0.69805526]
[1729024684258,0.075001,66663.0,66662.0,0.075]
[1729024684451,0.075001,66663.0,66658.0,0.62305026]
[1729024684656,0.075001,66662.0,66659.0,0.075004]
[1729024685060,0.3608,66699.0,66681.0,0.30028]
[1729024685265,0.00755583,66692.0,66685.0,0.3608]
[1729024685459,0.00755583,66692.0,66682.0,0.1259]
[1729024685460,0.074976,66685.0,66682.0,0.1259]
[1729024685758,0.074976,66685.0,66681.0,0.30028]
[1729024685759,0.074977,66683.0,66681.0,0.30028]
[1729024685966,0.3608,66685.0,66681.0,0.30028]
[1729024685967,0.074978,66682.0,66681.0,0.30028]
[1729024688158,0.084978,66682.0,66681.0,0.30028]
[1729024688667,0.084978,66682.0,66681.0,0.30128]
[1729024688967,0.1072144,66682.0,66681.0,0.30128]
[1729024690659,0.3672144,66682.0,66681.0,0.30128]
[1729024691257,1.4170944,66682.0,66681.0,0.30128]
[1729024692758,0.8170944,66682.0,66681.0,0.30128]
[1729024693269,0.5570944,66682.0,66681.0,0.30128]
[1729024693453,1.1570944,66682.0,66681.0,0.30128]
[1729024693658,0.5570944,66682.0,66681.0,0.30128]
[1729024694462,0.1072144,66682.0,66681.0,0.30128]
[1729024695059,0.7072144,66682.0,66681.0,0.30128]
[1729024695657,1.4170944,66682.0,66681.0,0.001]
[1729024695862,0.074996,66666.0,66665.0,0.27166989]
[1729024696065,0.379265,66666.0,66665.0,0.24997986]
[1729024696367,0.47911676,66666.0,66665.0,0.24997986]
[1729024696759,1.55564291,66666.0,66651.0,0.01254024]
[1729024697074,0.435812,66652.0,66651.0,0.00225024]
[1729024697259,0.66654362,66652.0,66651.0,0.00225024]
[1729024697465,0.57241793,66652.0,66651.0,0.00225024]
[1729024698766,0.57341793,66652.0,66651.0,0.01725024]
[1729024699365,0.73590779,66652.0,66651.0,0.00325024]
[1729024699563,0.075014,66650.0,66649.0,0.11216]
[1729024699776,0.075016,66649.0,66635.0,0.10589]
[1729024700068,0.23750519,66636.0,66635.0,0.10589]
[1729024700267,0.16247519,66636.0,66635.0,0.10589]
[1729024700472,0.08278307,66636.0,66635.0,0.10589]
[1729024701064,0.15781307,66637.0,66635.0,0.10589]
[1729024701369,0.08378307,66636.0,66635.0,0.10589]
[1729024701569,0.08382075,66636.0,66635.0,0.10589]
[1729024702278,0.03675003,66636.0,66635.0,0.10589]
[1729024702467,0.03675003,66636.0,66635.0,0.454921]
[1729024702978,0.13268447,66641.0,66637.0,0.075029]
[1729024703163,0.13268447,66641.0,66640.0,0.3608]
[1729024703363,0.13268447,66641.0,66640.0,0.6208]
[1729024704065,0.13268447,66641.0,66640.0,0.66552353]
[1729024704266,0.13268447,66641.0,66640.0,0.6208]
[1729024704466,0.13368447,66641.0,66640.0,0.6208]
[1729024705276,0.13368447,66641.0,66640.0,0.66552353]
[1729024705576,0.13368447,66641.0,66640.0,0.67952353]
[1729024705776,0.13368447,66641.0,66640.0,0.709826]
[1729024707473,0.001,66641.0,66640.0,0.709826]
[1729024708176,0.001,66641.0,66640.0,0.75454953]
[1729024708680,0.076025,66641.0,66640.0,0.67952353]
[1729024709177,0.076025,66641.0,66640.0,0.6348]
[1729024710274,0.336025,66641.0,66640.0,0.014]
[1729024710480,1.386185,66641.0,66640.0,0.00348322]
[1729024711779,1.386185,66641.0,66635.0,0.10589]
[1729024712079,0.69583,66636.0,66635.0,0.10589]
[1729024714374,0.70983,66636.0,66635.0,0.10689]
[1729024715085,0.69583,66636.0,66635.0,0.10589]
[1729024715283,0.70983,66636.0,66635.0,0.10689]
[1729024715787,0.72283,66636.0,66635.0,0.10689]
[1729024716876,0.74554932,66636.0,66635.0,0.10689]
[1729024717786,0.48554932,66636.0,66635.0,0.10689]
[1729024717980,0.13269102,66682.0,66635.0,0.10689]
[1729024717981,0.68036,66655.0,66635.0,0.10689]
[1729024718282,0.075022,66644.0,66639.0,0.6208]
[1729024718477,0.3608,66649.0,66639.0,0.6208]
[1729024718676,0.075022,66644.0,66639.0,0.3608]
[1729024720280,0.3608,66649.0,66639.0,0.3608]
[1729024720678,0.075021,66645.0,66639.0,0.3608]
[1729024720987,0.001,66644.0,66639.0,0.3728]
[1729024721173,0.001,66644.0,66640.0,0.1215]
[1729024722091,0.02222589,66649.0,66643.0,0.26]
[1729024722285,0.075013,66652.0,66645.0,0.07502]
[1729024722585,0.07501,66654.0,66650.0,0.435814]
[1729024722781,0.44381618,66655.0,66651.0,0.075013]
[1729024722982,0.44381618,66655.0,66652.0,0.2453]
[1729024722983,0.44301618,66655.0,66652.0,0.2453]
[1729024724481,0.51802518,66655.0,66652.0,0.2453]
[1729024724890,0.51802518,66655.0,66652.0,0.2463]
[1729024724891,0.075011,66653.0,66652.0,0.2463]
[1729024726187,0.077011,66653.0,66652.0,0.2463]
[1729024727376,0.247011,66653.0,66652.0,0.001]
[1729024727577,0.417011,66653.0,66652.0,0.001]
[1729024727888,0.247011,66653.0,66652.0,0.001]
[1729024730486,0.607811,66653.0,66652.0,0.001]
[1729024732194,0.247011,66653.0,66652.0,0.001]
[1729024732500,0.607811,66653.0,66652.0,0.001]
[1729024732992,0.64455962,66653.0,66652.0,0.001]
[1729024733589,0.69062281,66653.0,66652.0,0.001]